fUST/lending_fUST_20250624
["ID","MTS","AMOUNT","RATE_DAILY","PERIOD"]
[367289565,1750731047423,-460.0,0.00020084,2]
[367289566,1750731047433,-151.0,0.00020084,2]
[367289567,1750731047442,-737.39,0.00020084,2]
[367289568,1750731047450,-235.6083463,0.00020084,2]
[367289569,1750731047459,-460.0,0.00020084,2]
[367289570,1750731047468,-460.0,0.00020085,2]
[367289571,1750731047478,-253.35460576,0.00020085,2]
[367289572,1750731047488,-157.08128663,0.00020085,2]
[367289573,1750731047497,-460.0,0.00020085,2]
[367289574,1750731047508,-460.0,0.00020085,2]
[367289575,1750731047517,-376.58986966,0.00020085,2]
[367289576,1750731047527,-176.767559,0.00020085,2]
[367289577,1750731047537,-222.781259,0.00020085,2]
[367289578,1750731047546,-567.71,0.00020085,2]
[367289579,1750731047559,-222.781259,0.00020085,2]
[367289580,1750731047572,-383.394682,0.00020085,2]
[367289581,1750731047581,-460.0,0.00020085,2]
[367289582,1750731047591,-383.394682,0.00020085,2]
[367289583,1750731047600,-461.96067234,0.00020085,2]
[367289584,1750731047609,-460.0,0.00020085,2]
[367289585,1750731047618,-460.0,0.00020085,2]
[367289586,1750731047627,-167.19264588,0.00020085,2]
[367289587,1750731047636,-856.09,0.00020085,2]
[367289588,1750731047645,-303.61187345,0.00020085,2]
[367289589,1750731047654,-761.01,0.00020085,2]
[367289590,1750731047663,-460.0,0.00020085,2]
[367289591,1750731047672,-460.0,0.00020085,2]
[367289592,1750731047682,-361.545238,0.00020085,2]
[367289593,1750731047691,-460.0,0.00020085,2]
[367289594,1750731047700,-361.545238,0.00020085,2]
[367289595,1750731047709,-609.59,0.00020085,2]
[367289596,1750731047719,-460.0,0.00020085,2]
[367289597,1750731047728,-151.0,0.00020085,2]
[367289598,1750731047737,-625.92,0.00020085,2]
[367289599,1750731047746,-320.751098,0.00020085,2]
[367289600,1750731047755,-460.0,0.00020085,2]
[367289601,1750731047764,-320.751098,0.00020085,2]
[367289602,1750731047773,-460.0,0.00020085,2]
[367289603,1750731047782,-460.0,0.00020085,2]
[367289604,1750731047791,-460.0,0.00020085,2]
[367289605,1750731047799,-1111.11,0.00020085,2]
[367289606,1750731047809,-460.0,0.00020085,2]
[367289607,1750731047817,-696.5,0.00020085,2]
[367289608,1750731047826,-5291.82,0.00020085,2]
[367289609,1750731047835,-734.92,0.00020085,2]
[367289610,1750731047844,-471.24,0.00020085,2]
[367289611,1750731047853,-764.27,0.00020085,2]
[367289612,1750731047863,-701.19,0.00020085,2]
[367289613,1750731047875,-800.38,0.00020085,2]
[367289614,1750731047885,-460.0,0.00020085,2]
[367289615,1750731047894,-460.0,0.00020085,2]
[367289616,1750731047903,-460.0,0.00020085,2]
[367289617,1750731047915,-905.22,0.00020085,2]
[367289618,1750731047926,-1674.652596,0.00020085,2]
[367289619,1750731048024,-1674.652596,0.00020085,2]
[367289620,1750731048035,-696.18,0.00020085,2]
[367289621,1750731048045,-2395.4,0.00020085,2]
[367289622,1750731048054,-460.0,0.00020085,2]
[367289623,1750731048064,-789.05,0.00020085,2]
[367289624,1750731048073,-1119.69,0.00020085,2]
[367289625,1750731048083,-460.0,0.00020085,2]
[367289626,1750731048093,-400.0,0.00020085,2]
[367289627,1750731048102,-468.04,0.00020085,2]
[367289628,1750731048112,-460.0,0.00020086,2]
[367289629,1750731048121,-502.69159333,0.00020086,2]
[367289630,1750731048131,-301.33,0.00020086,2]
[367289631,1750731048140,-511.77,0.00020086,2]
[367289632,1750731048149,-460.0,0.00020086,2]
[367289633,1750731048159,-400.905182,0.00020086,2]
[367289634,1750731048168,-400.905182,0.00020086,2]
[367289635,1750731048178,-151.0,0.00020086,2]
[367289636,1750731048187,-460.0,0.00020086,2]
[367289637,1750731048197,-460.0,0.00020086,2]
[367289638,1750731048207,-460.0,0.00020086,2]
[367289639,1750731048217,-460.0,0.00020086,2]
[367289640,1750731048227,-460.0,0.00020086,2]
[367289641,1750731048237,-179.066064,0.00020086,2]
[367289642,1750731048247,-179.066064,0.00020086,2]
[367289643,1750731048257,-669.51,0.00020086,2]
[367289644,1750731048266,-460.0,0.00020086,2]
[367289645,1750731048276,-460.0,0.00020086,2]
[367289646,1750731048285,-593.93,0.00020086,2]
[367289647,1750731048294,-460.0,0.00020086,2]
[367289648,1750731048303,-466.579689,0.00020086,2]
[367289649,1750731048313,-313.23862429,0.00020086,2]
[367289650,1750731048323,-466.579689,0.00020086,2]
[367289651,1750731048332,-705.73,0.00020086,2]
[367289652,1750731048342,-460.0,0.00020086,2]
[367289653,1750731048351,-269.094194,0.00020086,2]
[367289654,1750731048361,-269.094194,0.00020086,2]
[367289655,1750731048370,-460.0,0.00020086,2]
[367289656,1750731048380,-460.0,0.00020086,2]
[367289657,1750731048390,-460.0,0.00020086,2]
[367289658,1750731048399,-2946.906804,0.00020086,2]
[367289659,1750731048409,-1081.001993,0.00020086,2]
[367289660,1750731048418,-2946.906804,0.00020086,2]
[367289661,1750731048429,-460.0,0.00020086,2]
[367289662,1750731048438,-1081.001993,0.00020086,2]
[367289663,1750731048448,-460.0,0.00020086,2]
[367289664,1750731048458,-156.865194,0.00020086,2]
[367289665,1750731048467,-156.865194,0.00020086,2]
[367289666,1750731048477,-151.0,0.00020086,2]
[367289667,1750731048487,-226.61368009,0.00020086,2]
[367289668,1750731048496,-460.0,0.00020086,2]
[367289669,1750731048506,-1212.39,0.00020086,2]
[367289670,1750731048515,-524.64254903,0.00020086,2]
[367289671,1750731048525,-460.0,0.00020086,2]
[367289672,1750731048534,-241.08563951,0.00020087,2]
[367289673,1750731048543,-151.0,0.00020087,2]
[367289674,1750731048552,-151.0,0.00020087,2]
[367289675,1750731048562,-460.0,0.00020087,2]
[367289676,1750731048571,-2428.54,0.00020087,2]
[367289677,1750731048580,-785.39,0.00020087,2]
[367289678,1750731048589,-340.54151083,0.00020087,2]
[367289679,1750731048599,-460.0,0.00020087,2]
[367289680,1750731048608,-2214.76,0.00020087,2]
[367289681,1750731048617,-1359.49,0.00020087,2]
[367289682,1750731048627,-3474.07,0.00020087,2]
[367289683,1750731048638,-460.0,0.00020087,2]
[367289684,1750731048647,-948.16,0.00020087,2]
[367289685,1750731048657,-493.02,0.00020087,2]
[367289686,1750731048667,-460.0,0.00020087,2]
[367289687,1750731048676,-460.0,0.00020087,2]
[367289688,1750731048685,-151.0,0.00020094,2]
[367289689,1750731048695,-567.61661363,0.00020094,2]
[367289690,1750731048704,-460.0,0.00020094,2]
[367289691,1750731048714,-151.0,0.00020094,2]
[367289692,1750731048723,-460.0,0.00020094,2]
[367289693,1750731048732,-151.0,0.00020094,2]
[367289694,1750731048741,-151.0,0.00020094,2]
[367289695,1750731048751,-460.0,0.00020094,2]
[367289696,1750731048761,-300.74048,0.00020094,2]
[367289697,1750731048770,-300.74048,0.00020094,2]
[367289698,1750731048779,-352.73988612,0.00020094,2]
[367289699,1750731048789,-151.0,0.00020094,2]
[367289700,1750731048798,-184.062754,0.00020094,2]
[367289701,1750731048807,-151.0,0.00020094,2]
[367289702,1750731048817,-162.889572,0.00020094,2]
[367289703,1750731048827,-151.0,0.00020094,2]
[367289704,1750731048836,-151.0,0.00020094,2]
[367289705,1750731048847,-418.53318884,0.00020094,2]
[367289706,1750731048858,-151.0,0.000201,3]
[367289707,1750731048870,-151.0,0.000201,4]
[367289708,1750731048879,-151.0,0.000201,4]
[367289709,1750731048889,-502.46426279,0.00020107,2]
[367289710,1750731048899,-165.1582937,0.00020118,2]
[367289711,1750731048908,-696.033548,0.00020177,2]
[367289712,1750731048918,-696.033548,0.00020177,2]
[367289713,1750731048927,-151.0,0.00020177,2]
[367289714,1750731048937,-151.0,0.00020177,2]
[367289715,1750731048947,-151.0,0.00020177,2]
[367289716,1750731048957,-151.0,0.00020177,2]
[367289717,1750731048966,-151.0,0.00020177,2]
[367289718,1750731048975,-420.299798,0.00020187,2]
[367289719,1750731048986,-151.0,0.000202,4]
[367289720,1750731048996,-2000.0,0.000202,4]
[367289721,1750731049005,-297.757149,0.000202,2]
[367289722,1750731049015,-58829.82238278,0.00020259,2]
[367289723,1750731049179,-34993.44888817,0.00020259,2]
[367289724,1750731049251,-421.16935955,0.00019251,2]
[367289725,1750731049365,-0.01372123,0.00019251,2]
[367289726,1750731127503,436.0,0.00019,2]
[367289728,1750731144667,1881.32002792,0.00016192,2]
[367289729,1750731246580,210.33486,0.00018674,2]
[367289730,1750731246826,335.4438185,0.00018674,2]
[367289731,1750731268654,259.09536,0.0001826,2]
[367289732,1750731318132,-291.68072461,0.00019152,2]
[367289733,1750731324649,1466.2733719,0.00018252,2]
[367289734,1750731327070,5000.0,0.00018192,2]
[367289735,1750731327244,1963.54344588,0.00016192,2]
[367289736,1750731328887,-113.30199645,0.00019152,2]
[367289737,1750731393823,766.15025428,0.000189,2]
[367289738,1750731394009,8345.1688632,0.00019,3]
[367289739,1750731394033,1773.84672256,0.00019,3]
[367289741,1750731450651,389.623149,0.00013699,2]
[367289743,1750731470906,160.0,0.00019022,6]
[367289744,1750731471229,160.0,0.00018884,5]
[367289745,1750731471561,160.0,0.00018746,4]
[367289746,1750731471897,160.0,0.00018608,3]
[367289747,1750731538766,-247.17311577,0.00019151,2]
[367289748,1750731548110,222.2997771,0.00018672,2]
[367289749,1750731613254,510.76683618,0.000189,2]
[367289750,1750731695008,340.51122412,0.000189,2]
[367289752,1750731761022,-181.82595463,0.00019149,2]
[367289753,1750731776196,9731.0,0.00026161,60]
[367289754,1750731916680,150.0,0.000189,2]
[367289756,1750731982799,-165.1568582,0.0001914,2]
[367289757,1750731999880,20972.95229104,0.0001824,2]
[367289758,1750731999904,3927.04770896,0.0001824,2]
[367289759,1750732024845,-195.5825576,0.0001914,2]
[367289760,1750732024867,-28.2327617,0.0001914,2]
[367289761,1750732031601,-1384.63246642,0.0001914,2]
[367289762,1750732031623,-160.0,0.0001916,7]
[367289763,1750732031645,-300.0,0.00019238,2]
[367289764,1750732031668,-200.45092634,0.00019238,2]
[367289766,1750732115602,543.39397621,0.00026161,60]
[367289769,1750732121532,187.47393879,0.00019,20]
[367289770,1750732200368,-195.88488778,0.00019139,2]
[367289771,1750732205041,379.24390124,0.00018917,2]
[367289808,1750732231914,-119.76210101,0.00019139,2]
[367289811,1750732231923,-165.1568582,0.00019178,2]
[367289814,1750732231932,-383.185381,0.00019178,2]
[367289817,1750732231942,-1200.0,0.00019237,2]
[367289820,1750732231951,-300.0,0.00019238,2]
[367289823,1750732231960,-283.0,0.00019238,2]
[367289825,1750732231969,-500.0,0.00019238,2]
[367289827,1750732231979,-500.0,0.00019238,2]
[367289829,1750732231988,-455.07576203,0.00019238,2]
[367289831,1750732231997,-500.0,0.00019238,2]
[367289833,1750732232007,-416.1105114,0.00019239,2]
[367289835,1750732232017,-460.0,0.00019239,2]
[367289837,1750732232026,-460.0,0.00019239,2]
[367289839,1750732232035,-456.57950191,0.00019239,2]
[367289841,1750732232043,-460.0,0.00019239,2]
[367289843,1750732232053,-459.10112356,0.00019239,2]
[367289845,1750732232061,-1736.59,0.00019239,2]
[367289847,1750732232070,-460.0,0.00019239,2]
[367289849,1750732232079,-449.35284709,0.00019239,2]
[367289851,1750732232089,-460.0,0.00019239,2]
[367289853,1750732232097,-469.02270339,0.00019239,2]
[367289855,1750732232107,-460.0,0.00019239,2]
[367289856,1750732232116,-553.77,0.00019239,2]
[367289858,1750732232125,-500.0,0.00019239,2]
[367289860,1750732232134,-500.0,0.00019239,2]
[367289862,1750732232143,-500.0,0.00019239,2]
[367289865,1750732232156,-500.0,0.00019239,2]
[367289867,1750732232166,-500.0,0.00019239,2]
[367289869,1750732232175,-500.0,0.00019239,2]
[367289871,1750732232184,-500.0,0.00019239,2]
[367289873,1750732232193,-500.0,0.00019239,2]
[367289875,1750732232205,-500.0,0.00019239,2]
[367289877,1750732232214,-500.0,0.00019239,2]
[367289879,1750732232224,-500.0,0.00019239,2]
[367289881,1750732232233,-500.0,0.00019239,2]
[367289882,1750732232243,-500.0,0.00019239,2]
[367289884,1750732232253,-500.0,0.00019239,2]
[367289886,1750732232262,-500.0,0.00019239,2]
[367289888,1750732232272,-500.0,0.00019239,2]
[367289890,1750732232282,-500.0,0.00019239,2]
[367289892,1750732232291,-500.0,0.00019239,2]
[367289894,1750732232300,-500.0,0.00019239,2]
[367289896,1750732232309,-500.0,0.00019239,2]
[367289898,1750732232318,-207.4,0.00019239,2]
[367289900,1750732232327,-500.0,0.00019239,2]
[367289902,1750732232336,-500.0,0.00019239,2]
[367289904,1750732232346,-500.0,0.00019239,2]
[367289906,1750732232355,-500.0,0.00019239,2]
[367289908,1750732232364,-500.0,0.00019239,2]
[367289910,1750732232373,-500.0,0.00019239,2]
[367289912,1750732232383,-500.0,0.00019239,2]
[367289914,1750732232393,-500.0,0.00019239,2]
[367289916,1750732232402,-500.0,0.00019239,2]
[367289918,1750732232411,-500.0,0.00019239,2]
[367289920,1750732232420,-500.0,0.00019239,2]
[367289922,1750732232430,-500.0,0.00019239,2]
[367289924,1750732232440,-500.0,0.00019239,2]
[367289926,1750732232450,-500.0,0.00019239,2]
[367289928,1750732232459,-500.0,0.00019239,2]
[367289930,1750732232468,-500.0,0.00019239,2]
[367289932,1750732232478,-5000.0,0.00019239,2]
[367289934,1750732232488,-48345.45527007,0.00019239,2]
[367289936,1750732232497,-2478.44,0.00019241,3]
[367289938,1750732232506,-1239.22,0.00019241,3]
[367289940,1750732232515,-619.61,0.00019241,3]
[367289942,1750732232525,-309.81,0.00019241,3]
[367289944,1750732232534,-154.9,0.00019241,3]
[367289946,1750732232544,-464.74,0.00019241,3]
[367289948,1750732232553,-460.0,0.00019248,2]
[367289950,1750732232563,-500.0,0.00019248,2]
[367289952,1750732232572,-500.0,0.00019248,2]
[367289954,1750732232581,-500.0,0.00019248,2]
[367289956,1750732232590,-604.03534535,0.00019248,2]
[367289958,1750732232600,-500.0,0.00019248,2]
[367289960,1750732232611,-500.0,0.00019248,2]
[367289962,1750732232620,-500.0,0.00019248,2]
[367289964,1750732232630,-500.0,0.00019248,2]
[367289966,1750732232640,-500.0,0.00019248,2]
[367289968,1750732232649,-500.0,0.00019248,2]
[367289970,1750732232659,-500.0,0.00019248,2]
[367289972,1750732232668,-500.0,0.00019248,2]
[367289974,1750732232678,-500.0,0.00019248,2]
[367289976,1750732232688,-500.0,0.00019248,2]
[367289978,1750732232697,-604.03534535,0.00019248,2]
[367289980,1750732232707,-500.0,0.00019248,2]
[367289982,1750732232716,-500.0,0.00019248,2]
[367289984,1750732232726,-460.0,0.00019249,2]
[367289986,1750732232735,-428.8645653,0.00019249,2]
[367289988,1750732232745,-460.0,0.00019249,2]
[367289990,1750732232754,-460.0,0.00019249,2]
[367289992,1750732232763,-460.0,0.00019249,2]
[367289994,1750732232773,-448.97840081,0.00019249,2]
[367289996,1750732232783,-461.34099127,0.00019249,2]
[367289998,1750732232793,-460.0,0.00019249,2]
[367290000,1750732232803,-460.0,0.00019249,2]
[367290002,1750732232812,-460.0,0.00019249,2]
[367290004,1750732232822,-460.0,0.00019249,2]
[367290006,1750732232831,-460.0,0.00019249,2]
[367290008,1750732232840,-460.0,0.00019249,2]
[367290010,1750732232849,-460.0,0.00019249,2]
[367290012,1750732232859,-460.0,0.00019249,2]
[367290014,1750732232868,-460.0,0.00019249,2]
[367290016,1750732232878,-460.0,0.00019249,2]
[367290018,1750732232887,-1662.31,0.00019249,2]
[367290019,1750732232896,-460.0,0.00019249,2]
[367290021,1750732232905,-460.0,0.00019249,2]
[367290023,1750732232915,-479.12191682,0.00019249,2]
[367290025,1750732232924,-460.0,0.00019249,2]
[367290027,1750732232933,-802.48,0.00019249,2]
[367290029,1750732232943,-460.0,0.00019249,2]
[367290031,1750732232951,-460.0,0.00019249,2]
[367290033,1750732232961,-756.31,0.00019249,2]
[367290035,1750732232971,-151.8405361,0.00019249,2]
[367290037,1750732232980,-585.71,0.00019249,2]
[367290039,1750732232989,-2352.95,0.00019249,2]
[367290041,1750732232999,-500.0,0.00019249,2]
[367290043,1750732233008,-460.0,0.00019249,2]
[367290045,1750732233018,-460.0,0.00019249,2]
[367290047,1750732233028,-460.0,0.00019249,2]
[367290049,1750732233037,-460.0,0.00019249,2]
[367290051,1750732233047,-460.0,0.00019249,2]
[367290053,1750732233057,-460.0,0.00019249,2]
[367290055,1750732233066,-666.07,0.00019249,2]
[367290057,1750732233076,-801.93,0.00019249,2]
[367290059,1750732233086,-461.6,0.00019249,2]
[367290061,1750732233097,-460.0,0.00019249,2]
[367290063,1750732233107,-460.0,0.00019249,2]
[367290065,1750732233117,-460.0,0.00019249,2]
[367290067,1750732233128,-475.36635775,0.00019249,2]
[367290069,1750732233138,-695.66,0.00019249,2]
[367290071,1750732233148,-1524.03,0.00019249,2]
[367290073,1750732233158,-460.0,0.00019249,2]
[367290075,1750732233168,-460.0,0.00019249,2]
[367290077,1750732233177,-460.0,0.00019249,2]
[367290079,1750732233186,-460.0,0.00019249,2]
[367290081,1750732233196,-460.0,0.00019249,2]
[367290083,1750732233209,-462.412491,0.00019249,2]
[367290085,1750732233219,-460.0,0.00019249,2]
[367290087,1750732233228,-460.0,0.00019249,2]
[367290089,1750732233239,-460.0,0.00019249,2]
[367290091,1750732233248,-1060.65,0.00019249,2]
[367290093,1750732233259,-1552.94,0.00019249,2]
[367290095,1750732233268,-460.0,0.00019249,2]
[367290097,1750732233278,-460.0,0.00019249,2]
[367290099,1750732233287,-675.77,0.00019249,2]
[367290101,1750732233297,-2753.05,0.00019249,2]
[367290103,1750732233307,-460.0,0.00019249,2]
[367290105,1750732233317,-605.941425,0.00019249,2]
[367290107,1750732233327,-475.71,0.00019249,2]
[367290109,1750732233336,-688.49,0.00019249,2]
[367290111,1750732233346,-460.0,0.00019249,2]
[367290113,1750732233355,-460.0,0.00019249,2]
[367290115,1750732233364,-460.0,0.00019249,2]
[367290117,1750732233374,-460.0,0.00019249,2]
[367290119,1750732233384,-460.0,0.00019249,2]
[367290121,1750732233394,-1162.4,0.00019249,2]
[367290123,1750732233403,-802.9,0.00019249,2]
[367290125,1750732233413,-622.11,0.00019249,2]
[367290127,1750732233423,-463.71675479,0.00019249,2]
[367290129,1750732233433,-462.26278241,0.00019249,2]
[367290131,1750732233444,-460.0,0.00019249,2]
[367290133,1750732233454,-460.0,0.00019249,2]
[367290134,1750732233464,-460.0,0.00019249,2]
[367290135,1750732233474,-460.0,0.00019249,2]
[367290136,1750732233484,-953.41,0.00019249,2]
[367290137,1750732233493,-2128.31,0.00019249,2]
[367290138,1750732233503,-462.43624898,0.00019249,2]
[367290139,1750732233514,-723.78,0.00019249,2]
[367290140,1750732233533,-750.95,0.00019249,2]
[367290141,1750732233544,-460.0,0.00019249,2]
[367290142,1750732233554,-549.93,0.00019249,2]
[367290143,1750732233565,-245.42726476,0.00019249,2]
[367290144,1750732233623,-258.906983,0.00019249,2]
[367290145,1750732233633,-460.0,0.00019249,2]
[367290146,1750732233644,-460.0,0.00019249,2]
[367290147,1750732233654,-460.0,0.00019249,2]
[367290148,1750732233664,-460.0,0.00019249,2]
[367290149,1750732233675,-465.0330886,0.00019249,2]
[367290150,1750732233685,-1170.87,0.00019249,2]
[367290151,1750732233695,-462.49394205,0.00019249,2]
[367290152,1750732233705,-463.17567197,0.00019249,2]
[367290153,1750732233716,-450.86291615,0.00019249,2]
[367290154,1750732233727,-464.76186706,0.00019249,2]
[367290155,1750732233737,-460.0,0.00019249,2]
[367290156,1750732233747,-474.35,0.0001925,2]
[367290157,1750732233757,-413.93526834,0.0001925,2]
[367290158,1750732233768,-412.96813616,0.0001925,2]
[367290159,1750732233777,-460.0,0.0001925,2]
[367290160,1750732233788,-460.0,0.0001925,2]
[367290161,1750732233798,-420.0,0.0001925,2]
[367290162,1750732233808,-425.48213205,0.0001925,2]
[367290163,1750732233819,-106.48076331,0.00019251,2]
[367290164,1750732233828,-460.0,0.00019251,2]
[367290165,1750732233838,-187.93956882,0.00019251,2]
[367290428,1750732240009,-500.0,0.00019247,2]
[367290430,1750732240018,-302.55400104,0.00019247,2]
[367292177,1750732257381,285.04440931,0.00024,120]
[367293695,1750732299328,774.58205882,0.000189,2]
[367293696,1750732347588,365.23112214,0.00018343,2]
[367293697,1750732520850,516.38803921,0.000189,2]
[367293698,1750732521480,-276.1911152,0.00019148,2]
[367293699,1750732524204,10000.0,0.00018236,2]
[367293700,1750732543977,173.565125,0.00018385,2]
[367293701,1750732544181,173.565125,0.00018385,61]
[367293702,1750732544386,173.565125,0.00018385,120]
[367293703,1750732595471,1001.0,0.00024,90]
[367293704,1750732601041,344.25869281,0.000189,2]
[367293705,1750732663153,-172.5,0.00019138,2]
[367293707,1750732673086,380.886935,0.00013699,2]
[367293708,1750732696784,-300.0,0.00019138,3]
[367293711,1750732806933,-160.58177857,0.00019137,2]
[367293712,1750732821934,229.5057952,0.000189,2]
[367293713,1750732823162,347.0,0.00018133,2]
[367293714,1750732823805,-150.0,0.00019137,2]
[367293715,1750732828593,347.0,0.00018407,2]
[367293716,1750732831003,347.0,0.00018436,2]
[367293717,1750732831633,-150.0,0.00019137,2]
[367293718,1750732847984,347.0,0.00018228,2]
[367293719,1750732851704,-223.65,0.00019137,2]
[367293720,1750732858091,347.0,0.00018281,2]
[367293721,1750732861547,-175.61005315,0.00019137,2]
[367293722,1750732862697,347.0,0.00018647,2]
[367293723,1750732902257,153.00386347,0.000189,2]
[367293724,1750732924444,-175.53480534,0.00019128,2]
[367293725,1750732924470,-47.46519466,0.00019129,2]
[367293726,1750732983113,-172.63953114,0.00019129,2]
[367293727,1750732983138,-41.31883734,0.00019137,2]
[367293728,1750732992420,-298.83933094,0.00019137,2]
[367293729,1750732992440,-300.0,0.00019137,2]
[367293730,1750732992462,-300.0,0.00019137,2]
[367293731,1750732992486,-9700.0,0.00019138,3]
[367293732,1750732992507,-1393.25438123,0.00019152,2]
[367293733,1750732992531,-500.0,0.00019199,2]
[367293734,1750732992554,-260.06171208,0.00019199,2]
[367293735,1750732992577,-500.0,0.00019199,2]
[367293736,1750732992746,-500.0,0.00019199,2]
[367293737,1750732992769,-500.0,0.00019199,2]
[367293738,1750732992791,-500.0,0.00019199,2]
[367293739,1750732992814,-500.0,0.00019199,2]
[367293740,1750732992836,-1000.0,0.000192,2]
[367293741,1750732992858,-1000.0,0.000192,3]
[367293742,1750732992879,-846.68469334,0.000192,3]
[367293743,1750732992900,-6455.15988241,0.000192,3]
[367293744,1750733019943,5486.81281936,0.00018234,2]
[367293745,1750733019966,700.56243964,0.00018234,2]
[367293746,1750733058867,983.0,0.00018249,2]
[367293747,1750733061983,983.0,0.0001887,2]
[367293748,1750733071174,983.0,0.00018214,2]
[367293749,1750733103984,-168.03110711,0.00019102,2]
[367293750,1750733122902,150.0,0.000189,2]
[367293751,1750733173845,-195.62592099,0.00019102,2]
[367293752,1750733200218,726.3822651,0.00018205,2]
[367293753,1750733203598,150.0,0.000189,2]
[367293754,1750733242376,-865.2619709,0.00019102,2]
[367293755,1750733242400,-192.59163511,0.00019127,2]
[367293756,1750733242421,-1204.53119212,0.00019139,2]
[367293757,1750733242442,-306.548304,0.00019178,2]
[367293758,1750733242463,-300.0,0.00019197,2]
[367293759,1750733242483,-1067.93660065,0.00019198,2]
[367293760,1750733249402,-132.06339935,0.00019198,2]
[367293761,1750733249422,-300.0,0.00019198,2]
[367293762,1750733249442,-300.0,0.00019198,2]
[367293763,1750733249461,-300.0,0.00019198,2]
[367293764,1750733249483,-362.22907912,0.00019198,2]
[367293765,1750733249502,-151.75220177,0.00019199,2]
[367293766,1750733297995,399.38295025,0.00018642,2]
[367293767,1750733299242,456.43765742,0.00018963,2]
[367293773,1750733377195,247.73417066,0.00019099,2]
[367293776,1750733403764,-195.62592099,0.00019102,2]
[367294077,1750733438084,-847.48149296,0.00019102,2]
[367294079,1750733438094,-300.0,0.00019197,2]
[367294081,1750733438104,-300.0,0.00019197,2]
[367294083,1750733438114,-1200.0,0.00019197,2]
[367294085,1750733438123,-460.0,0.00019198,2]
[367294087,1750733438132,-460.0,0.00019198,2]
[367294088,1750733438142,-426.00776161,0.00019198,2]
[367294090,1750733438153,-460.0,0.00019198,2]
[367294092,1750733438162,-1990.49,0.00019198,2]
[367294094,1750733438172,-313.87625219,0.00019199,2]
[367294096,1750733438180,-469.65332725,0.00019199,2]
[367294098,1750733438190,-463.39591802,0.00019199,2]
[367294099,1750733438199,-467.1192298,0.00019199,2]
[367294100,1750733438209,-463.23398545,0.00019199,2]
[367294101,1750733438219,-449.36878738,0.00019199,2]
[367294102,1750733438228,-445.89020891,0.00019199,2]
[367294103,1750733438237,-434.71237852,0.00019199,2]
[367294104,1750733438246,-442.1347431,0.00019199,2]
[367294105,1750733438255,-472.13051151,0.00019199,2]
[367294107,1750733438265,-198.28065858,0.00019199,2]
[367294108,1750733438274,-442.62905022,0.00019199,2]
[367294110,1750733438284,-467.77457106,0.00019199,2]
[367294112,1750733438293,-2557.21,0.00019199,2]
[367294114,1750733438303,-880.44,0.00019199,2]
[367294116,1750733438312,-460.0,0.00019199,2]
[367294118,1750733438321,-460.0,0.00019199,2]
[367294120,1750733438330,-460.0,0.00019199,2]
[367294122,1750733438339,-460.0,0.00019199,2]
[367294124,1750733438349,-460.0,0.00019199,2]
[367294126,1750733438359,-1786.35,0.00019199,2]
[367294128,1750733438368,-460.0,0.00019199,2]
[367294130,1750733438377,-2065.59,0.00019199,2]